Cogmind - Beta 9.6 @@@ ROGUE MODE // 2020.05.30 @ 21:46:42 Player: pGoos Result: Destroyed by G-34 Mercenary with Small Laser Performance ------------- Evolutions (1) 500 Regions Visited (2) 400 Robots Destroyed (12) 60 Value Destroyed (409) 409 Prototype IDs (0) 0 Alien Tech Used (0) 0 Bonus (200) 200 TOTAL SCORE: 1569 Bonus ------- Pacifist 200 Cogmind --------- Core Integrity 0/400 Matter 171/300 Energy 98/100 System Corruption 0% Temperature Cool (7) Movement Treading (160) Location -9/Materials Parts ------- > --- POWER (1) -------- (None) > --- PROPULSION (2) --- Light Treads > --- UTILITY (4) ------ Cooling System Medium Storage Unit Seismic Analyzer > --- WEAPON (2) ------- Grenade Launcher > --- INVENTORY (8) ---- Reinforced Ion Engine Large Storage Unit Large Storage Unit Peak State ------------ > --- POWER ------------ Ion Engine > --- PROPULSION ------- Wheel Compact Wheel > --- UTILITY ---------- Large Storage Unit Large Storage Unit Terrain Scanner Seismic Analyzer > --- WEAPON ----------- EM Pulse Gun Assault Rifle > --- INVENTORY -------- Light Ion Engine Small Storage Unit Medium Storage Unit Light Assault Rifle Grenade Launcher [Rating: 9] Favorites ----------- Power Ion Engine Engine Ion Engine Propulsion Aluminum Leg Treads Light Treads Leg Aluminum Leg Wheel Compact Wheel Utility Seismic Analyzer Device Terrain Scanner Storage Medium Storage Unit Processor Seismic Analyzer Weapon Assault Rifle Energy Gun EM Pulse Gun Ballistic Gun Assault Rifle Launcher Grenade Launcher Impact Weapon Hammer Build | -11 -10 -9 ------- Run | Scr Mat Mat Slots Evolved 2 | . . 2 Power . | . . . Propulsion . | . . . Utility 2 | . . 2 Weapon . | . . . Parts Attached 24 | 6 2 16 Power 2 | 1 . 1 Engine 2 | 1 . 1 Core . | . . . Reactor . | . . . Propulsion 6 | 2 . 4 Treads 1 | . . 1 Leg 3 | . . 3 Wheel 2 | 2 . . Hover . | . . . Flight . | . . . Utility 9 | 1 2 6 Device 2 | . 1 1 Storage 6 | 1 1 4 Processor 1 | . . 1 Hackware . | . . . Protection . | . . . Artifact . | . . . Weapon 7 | 2 . 5 Energy Gun 2 | 1 . 1 Energy Cannon . | . . . Ballistic Gun 3 | 1 . 2 Ballistic Cannon . | . . . Launcher 1 | . . 1 Special Weapon . | . . . Impact Weapon 1 | . . 1 Slashing Weapon . | . . . Piercing Weapon . | . . . Special Melee Weapon . | . . . Unidentified Prototypes . | . . . Parts Lost 11 | . . 11 Power 1 | . . 1 Propulsion 3 | . . 3 Utility 1 | . . 1 Weapon 6 | . . 6 Highest Loss Streak 9 | . . 9 Average Slot Usage (%) 75 | . 97 68 Engine 7 | . 14 5 Treads 2 | . . 3 Leg 6 | . . 8 Wheel 10 | . 28 4 Device 8 | . 11 7 Storage 12 | . 14 11 Processor 8 | . . 11 Energy Gun 9 | . 14 7 Ballistic Gun 8 | . 14 6 Naked Turns . | . . . Heaviest Build 42 | 13 26 42 Greatest Support 26 | 26 26 26 Greatest Overweight (x) 3 | 1 . 3 Average Overweight (x) . | . . . Largest Inventory Capacity 16 | 6 10 16 Average Capacity 7 | 5 6 8 Most Carried 7 | 2 7 6 Average Carried 3 | . 3 4 Final Capacity 10 | 6 10 8 Final Carried 7 | 2 7 3 Class Distribution -------------------- 100% | Mutant Dominant Class ---------------- Mutant | -10/Materials Mutant | -9/Materials Resources | -11 -10 -9 ----------- Run | Scr Mat Mat Matter Collected 430 | 177 . 253 Remotely . | . . . Salvage Created 348 | . . 348 Parts 22 | . . 22 Haulers Intercepted 1 | . . 1 Recyclers Shooed . | . . . Parts Field Recycled . | . . . Retrieved Matter . | . . . Parts Self-Destructed . | . . . Prevented . | . . . Kills | -11 -10 -9 ------- Run | Scr Mat Mat Combat Hostiles Destroyed 10 | . . 10 Guns 5 | . . 5 AOE 5 | . . 5 Classes Destroyed 6 | . . 6 Tunneler 1 | . . 1 Hauler 1 | . . 1 Grunt 6 | . . 6 Brawler 1 | . . 1 Duelist 1 | . . 1 Sentry 2 | . . 2 Best Kill Streak 7 | . . 7 Combat Bots Only 5 | . . 5 Max Kills in Single Turn 1 | . . 1 Gunslinging . | . . . Exploded 1 | . . 1 Melee . | . . . Uniques/NPCs Destroyed . | . . . Combat | -11 -10 -9 -------- Run | Scr Mat Mat Damage Taken 1375 | . 102 1273 Core 410 | . 7 403 Absorbed by Shields . | . . . Core Remaining (%) 98 | 100 97 . Volleys Fired 51 | . . 51 Largest 2 | . . 2 Hottest 60 | . . 60 Shots Fired 61 | . . 61 Gun 53 | . . 53 Cannon . | . . . Launcher 8 | . . 8 Special . | . . . Kinetic 36 | . . 36 Thermal 7 | . . 7 Explosive 8 | . . 8 Electromagnetic 10 | . . 10 Robot Hit Streak 10 | . . 10 Robot Miss Streak 2 | . . 2 Penetration Max . | . . . Secondary Targets . | . . . Shots Hit Robots 49 | . . 49 Core Hits 27 | . . 27 Critical Hits 1 | . . 1 Critical Kills . | . . . Critical Parts Destroyed 1 | . . 1 Melee Attacks 6 | . . 6 Impact 6 | . . 6 Slashing . | . . . Piercing . | . . . Sneak Attacks . | . . . Combat Hostiles . | . . . Follow-up Attacks . | . . . Damage Inflicted 1114 | . . 1114 Guns 494 | . . 494 Cannons . | . . . Explosions 551 | . . 551 Melee 69 | . . 69 Ramming . | . . . Kinetic 331 | . . 331 Thermal 59 | . . 59 Explosive 551 | . . 551 Electromagnetic 104 | . . 104 Impact 69 | . . 69 Slashing . | . . . Piercing . | . . . Highest Corruption . | . . . Average Corruption . | . . . Corruption Purged . | . . . Overload Shots . | . . . Overflow Damage 22 | . . 22 Projectiles . | . . . Explosions 9 | . . 9 Melee 13 | . . 13 Knockbacks . | . . . Impact . | . . . Kinetic . | . . . Secondary . | . . . Self-Inflicted Damage 36 | . . 36 Shots 1 | . . 1 Rammed . | . . . Targets Rammed . | . . . Kicked . | . . . Crushed . | . . . Highest Temperature 3 | . . 3 Average Temperature 2 | . . 2 Received Heat Transfer 489 | . . 489 Siege Activations . | . . . Robots Corrupted . | . . . Combat Hostiles . | . . . Parts Fried . | . . . Impact Corruptions 1 | . . 1 Robots Melted . | . . . Combat Hostiles . | . . . Parts Melted . | . . . Heat Transferred 148 | . . 148 Parts Sabotaged . | . . . Parts Stolen . | . . . Parts Stripped . | . . . Power Chain Reactions . | . . . Missiles Intercepted . | . . . Alert | -11 -10 -9 ------- Run | Scr Mat Mat Peak Influence 217 | . . 217 Average Influence 44 | . . 69 Maximum Alert Level 1 | . . 1 Low Security (%) 99 | 100 100 98 Level 1 . | . . 1 Level 2 . | . . . Level 3 . | . . . Level 4 . | . . . Level 5 . | . . . High Security . | . . . Max Security . | . . . Squads Dispatched 1 | . 1 . Investigation . | . . . Extermination . | . . . Reinforcement 1 | . 1 . Assault . | . . . Garrison . | . . . Intercept . | . . . Construction Impeded . | . . . Haulers Reinforced . | . . . Stealth | -11 -10 -9 --------- Run | Scr Mat Mat Distress Signals 3 | . . 3 Communications Jammed . | . . . Distress Signals . | . . . Times Spotted 22 | . 3 19 Peak Tracking Total 6 | . 4 6 Tactical Retreats 3 | . . 3 Traps | -11 -10 -9 ------- Run | Scr Mat Mat Traps Triggered . | . . . Indirectly . | . . . Trap Hack Attempts . | . . . Triggered . | . . . Disarmed . | . . . Reprogrammed . | . . . Reused . | . . . Traps Extracted . | . . . Installed . | . . . Triggered . | . . . Machines | -11 -10 -9 ---------- Run | Scr Mat Mat Machines Disabled 1 | . . 1 Max in Single Turn 1 | . . 1 Machines Sabotaged . | . . . Garrisons Compromised . | . . . Overloaded Fab Kills . | . . . Fab Network Shutdowns . | . . . Hacking | -11 -10 -9 --------- Run | Scr Mat Mat Machines Accessed 3 | . 1 2 Terminals 2 | . 1 1 Fabricators . | . . . Repair Stations . | . . . Recycling Units 1 | . . 1 Scanalyzers . | . . . Garrison Access . | . . . Total Hacks 6 | . 1 5 Successful 3 | . 1 2 Failed 3 | . . 3 Catastrophic . | . . . Database Lockouts . | . . . Manual . | . . . Terminals 3 | . 1 2 Fabricators . | . . . Repair Stations . | . . . Recycling Units 3 | . . 3 Scanalyzers . | . . . Garrison Access . | . . . Terminal Hacks 3 | . 1 2 Alert Level 1 | . 1 . Transport Status 2 | . . 2 Fabricator Hacks . | . . . Repair Station Hacks . | . . . Recycling Unit Hacks . | . . . Scanalyzer . | . . . Garrison Access Hacks . | . . . Unauthorized Hacks . | . . . Terminals . | . . . Fabricators . | . . . Repair Stations . | . . . Recycling Units . | . . . Scanalyzers . | . . . Garrison Access . | . . . Data Cores Recovered . | . . . Used . | . . . Hacking Detections 3 | . 1 2 Full Trace Events . | . . . Feedback Events . | . . . Feedback Blocked . | . . . Robot Schematics Acquired . | . . . Robots Built . | . . . Matter . | . . . Time . | . . . Total Robot Build Rating . | . . . Part Schematics Acquired . | . . . Parts Built . | . . . Matter . | . . . Time . | . . . Total Part Build Rating . | . . . Parts Repaired . | . . . Time . | . . . Parts Recycled . | . . . Recycled Matter . | . . . Retrieved Matter . | . . . Retrieved Components . | . . . Parts Scanalyzed . | . . . Part Schematics Acquired . | . . . Parts Damaged . | . . . Bothacking | -11 -10 -9 ------------ Run | Scr Mat Mat Used RIF Installer . | . . . Robots Hacked . | . . . Non-combat . | . . . Combat . | . . . Robot Hacks Applied . | . . . Relay Couplers Released . | . . . Robots Rewired . | . . . Allies Hacked . | . . . Hacks Repelled . | . . . Allies | -11 -10 -9 -------- Run | Scr Mat Mat Total Allies . | . . . Largest Group . | . . . Highest-Rated Group . | . . . Highest-Rated Ally . | . . . Total Orders . | . . . Ally Attacks . | . . . Total Damage . | . . . Kills . | . . . Allies Corrupted . | . . . Allies Melted . | . . . Intel | -11 -10 -9 ------- Run | Scr Mat Mat Robot Analysis Total . | . . . Derelict Logs Recovered . | . . . Drone Launches . | . . . Drone Recoveries . | . . . Exploration | -11 -10 -9 ------------- Run | Scr Mat Mat Turns Passed 565 | 87 119 359 Spaces Moved 366 | 89 124 153 Core 23 | 14 . 9 Treads 52 | . . 52 Legs 51 | . . 51 Wheels 240 | 75 124 41 Hover . | . . . Flight . | . . . Fastest Speed 50 | 50 90 90 Average Speed 106 | 86 90 131 Slowest Speed 200 | 100 90 200 Overloaded Moves . | . . . Propulsion Burnouts . | . . . Robots Hopped . | . . . Cave-ins Triggered . | . . . Exploration Rate (%) 16 | 5 30 13 Regions Visited 2 Branch Regions . Pre-discovered Areas . | . . . Known Exits Taken . | . . . Unknown Exits Taken 2 | 1 1 . Scrap Searched . | . . . Spaces Dug 6 | . . 6 Terrain Destroyed 30 | . . 30 Melee . | . . . Projectile . | . . . AOE 30 | . . 30 Actions | -11 -10 -9 --------- Run | Scr Mat Mat Total 468 | 96 130 242 Wait 7 | . . 7 Move 364 | 88 123 153 Hop . | . . . Pick Up 9 | 2 5 2 Fast Attach 13 | 6 . 7 Attach 8 | . 1 7 Detach 3 | . . 3 Swap 3 | . 1 2 Drop 4 | . . 4 Fire 51 | . . 51 Melee 6 | . . 6 Ram . | . . . Kick . | . . . Crush . | . . . Escape Stasis . | . . . Rewire . | . . . Trap . | . . . Miscellaneous . | . . . Route ------- -11/Scrapyard -10/Materials -9/Materials History --------- Turn | Location | Event 4 | -11/Scrapyard | Discovered new exit (range 15) 88 | -11/Scrapyard | Entered Materials 193 | -10/Materials | Discovered new exit (range 6) 207 | -10/Materials | Entered another Materials area 207 | -9/Materials | Evolved 2 slots: Utility x2 323 | -9/Materials | Build established: Mutant 405 | -9/Materials | Core integrity fell below 50% 459 | -9/Materials | Lost 9 parts (1p2n1u5w) 553 | -9/Materials | Core integrity fell below 20% 566 | -9/Materials | Destroyed by G-34 Mercenary with Small Laser Last Messages --------------- 00432_ R-06 Scavenger collects Particle Gun. 00433_ Acquired 56 matter. 00445_ W-16 Scout sends out distress signal. 00453_ Acquired Aluminum Leg. 00458_ Acquired Lgt. Treads. 00470_ K-01 Serf collects debris. 00471_ Acquired Cooling System. 00474_ K-01 Serf collects debris. 00480_ K-01 Serf cleans the Recycling Unit. 00548_ T-07 Excavator destroyed. 00551_ Aluminum Leg destroyed. 00552_ L-31 Rogue destroyed. 00552_ Terminal disabled. 00554_ A-02 Transporter destroyed. 00556_ G-34 Mercenary destroyed. 00559_ Beam Rifle destroyed. 00562_ Y-45 Defender destroyed. 00564_ The unstable cave ceiling collapses. 00564_ O-16 Technician: "IFF HANDSHAKE FAILED. SECURING TERMINAL." 00566_ W-16 Scout sends out distress signal. Map ----- +----------------------------------------------------+ | ???? ??#?????????????????????????????????????? | | ???# ????????????????????????????????????????? | | ???# #?###????????????????????????????????????? | | ?#### # ????????????????????????????????????? | | # # ??????????????????????????????????????? | | ??? / + ??????????????????????????????????????? | | ??? # # ???? ??????????????????????????????????? | | ##### ##?##????????????????????????????????????? | | #### ########?????????????????????????????????? | | #########?????????????????????????? | | ??????????????????????????? | | ###???? ??????????????????????????? | | ###+######### #?????# ??????????????????????????? | | ## #????# #?????# #?????????????????????????? | | ## """ #?##?# #?????# #?????????????????????????? | | ## Y" #???## #?????# #?????????????????????????? | | ## """ #??###+####### #####?????????????????????? | | ## #??# T # # ###???????????????????? | | ## #??# = ] ######### ??????????? | | ##########?# ! = ?????????? | | #??#?###?#?# r ] ^ ^ ?????????? | | #?##???????# """ """ ?????????? | | #??###??#??# """ """ # r o ?????????? | | #???#?##?#?# """ """ ????????? | | #?#???#??### k ??????????? | | ####??#?#?####### ### */ @ """w??????????????? | | ###?#?##??#?????###?## %= # """ ??????????????? | | #??#?##??#???????????# ! #????"" ??????????????? | | #???###??????????????# #?????????????????????? | | ######?#???????????? g/ "T #?????????????????????? | | ??#???#?#??????????#### "" #?????????????????????? | | ?##??#????????????????# #?????????????????????? | | #?##??#???????????????######?????????????????????? | | ?####????????????????????????????????????????????? | | ?##?#?#??????????????????????????????????????????? | | #?#??????????????????????????????????????????????? | | ?????????????????????????????????????????????????? | | ?????????????????????????????????????????????????? | | ?????????????????????????????????????????????????? | | ?????????????????????????????????????????????????? | | ?????????????????????????????????????????????????? | | ?????????????????????????????????????????????????? | | ?????????????????????????????????????????????????? | | ?????????????????????????????????????????????????? | | ?????????????????????????????????????????????????? | | ?????????????????????????????????????????????????? | | | | | | | | | +----------------------------------------------------+ Best States ------------- Heat Dissipation 50 Energy Generation 10 Energy Capacity 250 Matter Stores 281 Matter Capacity 300 Sight Range 16 Terrain Scan Range 14 Terrain Scan Density 60 Evasion (%) 42 Recoil Reduction 1 Item Schematics ----------------- None Robot Schematics ------------------ None Fabricated ------------ Nothing Alien Tech Used ----------------- None Achievements -------------- None Challenges ------------ None Game ------ Seed FireCoolantThrower Manual? 0 Play Time 00:13:21 Cumulative 19.2 hours Start 2020.05.30 @ 21:21:47 End 2020.05.30 @ 21:46:42 Sessions 1 Manual Loads 0 Difficulty Rogue Special Mode None Game No. 28 Rogue 28 Adventurer 0 Explorer 0 Win Type - Total 0 Types 0/0/0/0/0/0/0 Lore% 19 Gallery% 22 Achievement% 17 Wizard Run 0 Options --------- ASCII 0 Keyboard 0 Movement Mouse Keybinds 0 Fullscreen 2 Font 24/Terminus Map View 113x50 Tactical HUD 1 Map Filters NONE Filters NONE Steam 1 RUN: fc523b66-baea-4d38-814f-5b35357471d2